[Event "Titled Tuesday Blitz May 31 Early 2022"]
[White "Golubova, Anna"]
[Black "Korchmar, Vasiliy"]
[WhiteFideId "24173606"]
[BlackFideId "24131750"]
[WhiteElo "2083"]
[BlackElo "2370"]
[Result "0-1"]
[Round "01"]
[TimeControl "180+1"]
[Date "2022.06.01"]
[WhiteClock "0:00:36"]
[BlackClock "0:00:07"]

1. d4 {[%clk 0:02:59]}  Nf6 {[%clk 0:02:59]} 2. Nf3 {[%clk 0:02:58]}  d5 {[%clk 0:02:59]} 3. Bf4 {[%clk 0:02:57]}  c5 {[%clk 0:02:57]} 4. e3 {[%clk 0:02:57]}  Nc6 {[%clk 0:02:56]} 5. c3 {[%clk 0:02:58]}  e6 {[%clk 0:02:56]} 6. Nbd2 {[%clk 0:02:57]}  Be7 {[%clk 0:02:41]} 7. Bd3 {[%clk 0:02:55]}  Nh5 {[%clk 0:02:34]} 8. Be5 {[%clk 0:02:49]}  f6 {[%clk 0:02:27]} 9. Bg3 {[%clk 0:02:46]}  Qb6 {[%clk 0:02:08]} 10. Rb1 {[%clk 0:02:37]}  Bd7 {[%clk 0:02:07]} 11. Qe2 {[%clk 0:02:36]}  O-O-O {[%clk 0:02:03]} 12. O-O {[%clk 0:02:35]}  Nxg3 {[%clk 0:02:03]} 13. hxg3 {[%clk 0:02:35]}  e5 {[%clk 0:01:48]} 14. dxe5 {[%clk 0:02:30]}  fxe5 {[%clk 0:01:40]} 15. e4 {[%clk 0:02:31]}  d4 {[%clk 0:01:38]} 16. Nc4 {[%clk 0:02:30]}  Qc7 {[%clk 0:01:38]} 17. cxd4 {[%clk 0:02:30]}  exd4 {[%clk 0:01:29]} 18. Rbc1 {[%clk 0:02:17]}  Kb8 {[%clk 0:01:30]} 19. a3 {[%clk 0:02:15]}  Bg4 {[%clk 0:01:23]} 20. b4 {[%clk 0:02:04]}  cxb4 {[%clk 0:01:24]} 21. axb4 {[%clk 0:02:04]}  Bxb4 {[%clk 0:01:25]} 22. Nce5 {[%clk 0:01:58]}  Qxe5 {[%clk 0:01:08]} 23. Nxe5 {[%clk 0:01:50]}  Bxe2 {[%clk 0:01:09]} 24. Nxc6+ {[%clk 0:01:48]}  bxc6 {[%clk 0:01:10]} 25. Bxe2 {[%clk 0:01:47]}  d3 {[%clk 0:01:03]} 26. Bg4 {[%clk 0:01:43]}  Kb7 {[%clk 0:00:47]} 27. e5 {[%clk 0:01:42]}  Rhe8 {[%clk 0:00:42]} 28. f4 {[%clk 0:01:36]}  Kb6 {[%clk 0:00:33]} 29. e6 {[%clk 0:01:28]}  a5 {[%clk 0:00:31]} 30. f5 {[%clk 0:01:28]}  a4 {[%clk 0:00:27]} 31. Kf2 {[%clk 0:01:27]}  a3 {[%clk 0:00:24]} 32. Rb1 {[%clk 0:01:25]}  c5 {[%clk 0:00:24]} 33. Ke3 {[%clk 0:01:25]}  Re7 {[%clk 0:00:16]} 34. Bf3 {[%clk 0:01:23]}  Ka5 {[%clk 0:00:10]} 35. Be4 {[%clk 0:01:18]}  c4 {[%clk 0:00:08]} 36. Rfc1 {[%clk 0:01:13]}  d2 {[%clk 0:00:07]} 37. Rd1 {[%clk 0:01:08]}  c3 {[%clk 0:00:07]} 38. Rb3 {[%clk 0:01:06]}  Ka4 {[%clk 0:00:05]} 39. Bc2 {[%clk 0:01:02]}  Ka5 {[%clk 0:00:05]} 40. Rdb1 {[%clk 0:01:02]}  Rb8 {[%clk 0:00:04]} 41. Rxc3 {[%clk 0:00:55]}  Bxc3 {[%clk 0:00:04]} 42. Rxb8 {[%clk 0:00:55]}  Ra7 {[%clk 0:00:04]} 43. Bb3 {[%clk 0:00:44]}  d1=Q {[%clk 0:00:03]} 44. Bxd1 {[%clk 0:00:40]}  a2 {[%clk 0:00:04]} 45. e7 {[%clk 0:00:38]}  Rxe7+ {[%clk 0:00:04]} 46. Kd3 {[%clk 0:00:37]}  a1=Q {[%clk 0:00:05]} 47. Ra8+ {[%clk 0:00:36]}  Kb6 {[%clk 0:00:05]} 48. Rxa1 {[%clk 0:00:35]}  Bxa1 {[%clk 0:00:06]} 49. Bb3 {[%clk 0:00:35]}  Bf6 {[%clk 0:00:07]} 50. g4 {[%clk 0:00:35]}  Kc5 {[%clk 0:00:07]} 51. Be6 {[%clk 0:00:35]}  h6 {[%clk 0:00:08]} 52. Ke4 {[%clk 0:00:35]}  Kd6 {[%clk 0:00:08]} 53. Kf4 {[%clk 0:00:34]}  Ra7 {[%clk 0:00:09]} 54. Kg3 {[%clk 0:00:34]}  Ra4 {[%clk 0:00:09]} 55. Kh3 {[%clk 0:00:34]}  Ra3+ {[%clk 0:00:10]} 56. g3 {[%clk 0:00:35]}  Ke5 {[%clk 0:00:11]} 57. Bc4 {[%clk 0:00:34]}  Bg5 {[%clk 0:00:12]} 58. Bb5 {[%clk 0:00:34]}  Bf4 {[%clk 0:00:12]} 59. Kh4 {[%clk 0:00:34]}  Rxg3 {[%clk 0:00:12]} 60. Kh5 {[%clk 0:00:35]}  Kf6 {[%clk 0:00:10]} 61. Kh4 {[%clk 0:00:35]}  Rg2 {[%clk 0:00:10]} 62. Bf1 {[%clk 0:00:35]}  Rh2+ {[%clk 0:00:09]} 63. Bh3 {[%clk 0:00:36]}  Rh1 {[%clk 0:00:07]} 64. g5+ {[%clk 0:00:35]}  Bxg5+ {[%clk 0:00:08]} 65. Kg4 {[%clk 0:00:36]}  Rxh3 {[%clk 0:00:07]} 66. Kxh3 {[%clk 0:00:36]}  Kxf5 {[%clk 0:00:07]} 0-1


[Site "https://www.chess.com"]

[Event "Titled Tuesday Blitz May 31 Early 2022"]
[White "Aravindh, Chithambaram VR."]
[Black "Jain, Naveen"]
[WhiteFideId "5072786"]
[BlackFideId "5003970"]
[WhiteElo "2561"]
[BlackElo "2036"]
[Result "1-0"]
[Round "01"]
[TimeControl "180+1"]
[Date "2022.06.01"]
[WhiteClock "0:00:20"]
[BlackClock "0:00:03"]

1. b3 {[%clk 0:02:57]}  g6 {[%clk 0:02:35]} 2. Bb2 {[%clk 0:02:58]}  Nf6 {[%clk 0:02:36]} 3. g3 {[%clk 0:02:52]}  Bg7 {[%clk 0:02:07]} 4. Bg2 {[%clk 0:02:53]}  O-O {[%clk 0:02:06]} 5. Nf3 {[%clk 0:02:51]}  d6 {[%clk 0:02:06]} 6. d4 {[%clk 0:02:51]}  Nc6 {[%clk 0:02:06]} 7. O-O {[%clk 0:02:46]}  Bg4 {[%clk 0:02:02]} 8. Nbd2 {[%clk 0:02:40]}  Qd7 {[%clk 0:02:01]} 9. e4 {[%clk 0:02:23]}  e5 {[%clk 0:01:59]} 10. c3 {[%clk 0:02:15]}  exd4 {[%clk 0:01:56]} 11. cxd4 {[%clk 0:02:14]}  Rfe8 {[%clk 0:01:56]} 12. Re1 {[%clk 0:02:14]}  Rad8 {[%clk 0:01:45]} 13. d5 {[%clk 0:02:09]}  Ne5 {[%clk 0:01:43]} 14. Nxe5 {[%clk 0:02:05]}  dxe5 {[%clk 0:01:39]} 15. Qc2 {[%clk 0:02:05]}  c6 {[%clk 0:01:33]} 16. Nc4 {[%clk 0:02:03]}  Nh5 {[%clk 0:01:20]} 17. f3 {[%clk 0:01:52]}  Bh3 {[%clk 0:01:19]} 18. dxc6 {[%clk 0:01:52]}  bxc6 {[%clk 0:01:17]} 19. Rad1 {[%clk 0:01:51]}  Qe6 {[%clk 0:01:07]} 20. Rxd8 {[%clk 0:01:44]}  Rxd8 {[%clk 0:01:07]} 21. Rd1 {[%clk 0:01:44]}  Rxd1+ {[%clk 0:00:55]} 22. Qxd1 {[%clk 0:01:45]}  h6 {[%clk 0:00:55]} 23. Qd8+ {[%clk 0:01:21]}  Kh7 {[%clk 0:00:54]} 24. Qd6 {[%clk 0:01:21]}  Qxd6 {[%clk 0:00:37]} 25. Nxd6 {[%clk 0:01:22]}  Bxg2 {[%clk 0:00:31]} 26. Kxg2 {[%clk 0:01:22]}  f6 {[%clk 0:00:31]} 27. Nc8 {[%clk 0:01:05]}  a6 {[%clk 0:00:26]} 28. Ne7 {[%clk 0:01:00]}  c5 {[%clk 0:00:22]} 29. Ba3 {[%clk 0:01:00]}  Bf8 {[%clk 0:00:20]} 30. Bxc5 {[%clk 0:00:59]}  Ng7 {[%clk 0:00:20]} 31. b4 {[%clk 0:00:46]}  Ne6 {[%clk 0:00:20]} 32. Nd5 {[%clk 0:00:46]}  Bxc5 {[%clk 0:00:16]} 33. bxc5 {[%clk 0:00:47]}  Nxc5 {[%clk 0:00:15]} 34. Nxf6+ {[%clk 0:00:47]}  Kg7 {[%clk 0:00:16]} 35. Nd5 {[%clk 0:00:43]}  Kf7 {[%clk 0:00:15]} 36. Kf1 {[%clk 0:00:42]}  Nd3 {[%clk 0:00:14]} 37. Nc3 {[%clk 0:00:39]}  Ke6 {[%clk 0:00:13]} 38. Ke2 {[%clk 0:00:40]}  Nc5 {[%clk 0:00:10]} 39. Nd5 {[%clk 0:00:40]}  Na4 {[%clk 0:00:09]} 40. Kd2 {[%clk 0:00:38]}  Nc5 {[%clk 0:00:09]} 41. Kc3 {[%clk 0:00:38]}  Kd6 {[%clk 0:00:09]} 42. Kc4 {[%clk 0:00:37]}  Ne6 {[%clk 0:00:08]} 43. Kd3 {[%clk 0:00:27]}  Nd4 {[%clk 0:00:08]} 44. f4 {[%clk 0:00:24]}  Nc6 {[%clk 0:00:07]} 45. Nc3 {[%clk 0:00:23]}  exf4 {[%clk 0:00:05]} 46. gxf4 {[%clk 0:00:24]}  g5 {[%clk 0:00:04]} 47. Ke3 {[%clk 0:00:22]}  gxf4+ {[%clk 0:00:04]} 48. Kxf4 {[%clk 0:00:22]}  Ke6 {[%clk 0:00:04]} 49. Nd5 {[%clk 0:00:21]}  Ne5 {[%clk 0:00:03]} 50. Nc7+ {[%clk 0:00:21]}  Kf6 {[%clk 0:00:04]} 51. Nxa6 {[%clk 0:00:20]}  Nd3+ {[%clk 0:00:04]} 52. Ke3 {[%clk 0:00:20]}  Nc1 {[%clk 0:00:04]} 53. Nb4 {[%clk 0:00:20]}  Ke5 {[%clk 0:00:03]} 54. Nd3+ {[%clk 0:00:20]} 1-0


[Site "https://www.chess.com"]

[Event "Titled Tuesday Blitz May 31 Early 2022"]
[White "Baches Garcia, Guillermo"]
[Black "Pranesh M"]
[WhiteFideId "2209764"]
[BlackFideId "35028600"]
[WhiteElo "2479"]
[BlackElo "1902"]
[Result "1-0"]
[Round "01"]
[TimeControl "180+1"]
[Date "2022.05.31"]
[WhiteClock "0:00:14"]
[BlackClock "0:00:19"]

1. e4 {[%clk 0:03:00]}  e5 {[%clk 0:02:59]} 2. Nf3 {[%clk 0:03:00]}  Nc6 {[%clk 0:03:00]} 3. Bc4 {[%clk 0:03:01]}  Nf6 {[%clk 0:03:00]} 4. Ng5 {[%clk 0:02:59]}  d5 {[%clk 0:03:00]} 5. exd5 {[%clk 0:03:00]}  Na5 {[%clk 0:03:00]} 6. Bb5+ {[%clk 0:03:00]}  c6 {[%clk 0:03:01]} 7. dxc6 {[%clk 0:03:01]}  bxc6 {[%clk 0:03:01]} 8. Qf3 {[%clk 0:03:01]}  Be7 {[%clk 0:03:01]} 9. Bd3 {[%clk 0:02:59]}  O-O {[%clk 0:02:56]} 10. Nc3 {[%clk 0:02:58]}  h6 {[%clk 0:02:56]} 11. Nge4 {[%clk 0:02:57]}  Nd5 {[%clk 0:02:55]} 12. Ng3 {[%clk 0:02:57]}  Nf4 {[%clk 0:02:54]} 13. Bf5 {[%clk 0:02:55]}  Rb8 {[%clk 0:02:24]} 14. O-O {[%clk 0:02:53]}  Bh4 {[%clk 0:02:03]} 15. Bxc8 {[%clk 0:02:46]}  Qxc8 {[%clk 0:02:03]} 16. d3 {[%clk 0:02:43]}  Bxg3 {[%clk 0:02:02]} 17. hxg3 {[%clk 0:02:36]}  Ne6 {[%clk 0:02:03]} 18. Qe4 {[%clk 0:02:06]}  f6 {[%clk 0:01:44]} 19. b4 {[%clk 0:01:57]}  Nb7 {[%clk 0:01:39]} 20. Be3 {[%clk 0:01:49]}  Nd6 {[%clk 0:01:38]} 21. Qg4 {[%clk 0:01:43]}  f5 {[%clk 0:01:34]} 22. Qe2 {[%clk 0:01:42]}  f4 {[%clk 0:01:32]} 23. Bc5 {[%clk 0:01:39]}  Nxc5 {[%clk 0:01:10]} 24. bxc5 {[%clk 0:01:40]}  Nf5 {[%clk 0:01:11]} 25. Qxe5 {[%clk 0:01:33]}  f3 {[%clk 0:01:07]} 26. gxf3 {[%clk 0:01:29]}  Qd7 {[%clk 0:00:56]} 27. Ne4 {[%clk 0:01:22]}  Nd4 {[%clk 0:00:53]} 28. Qd6 {[%clk 0:01:15]}  Nxf3+ {[%clk 0:00:51]} 29. Kg2 {[%clk 0:01:09]}  Qg4 {[%clk 0:00:51]} 30. Rh1 {[%clk 0:01:00]}  Rbe8 {[%clk 0:00:46]} 31. Qxc6 {[%clk 0:00:58]}  Kh7 {[%clk 0:00:41]} 32. Rab1 {[%clk 0:00:55]}  Nd4 {[%clk 0:00:39]} 33. Qd5 {[%clk 0:00:46]}  Qf3+ {[%clk 0:00:39]} 34. Kg1 {[%clk 0:00:32]}  Ne2+ {[%clk 0:00:38]} 35. Kh2 {[%clk 0:00:32]}  Rf5 {[%clk 0:00:36]} 36. Ng5+ {[%clk 0:00:27]}  hxg5 {[%clk 0:00:18]} 37. Qxf3 {[%clk 0:00:27]}  Kg6 {[%clk 0:00:17]} 38. Qc6+ {[%clk 0:00:23]}  Kf7 {[%clk 0:00:14]} 39. Qd7+ {[%clk 0:00:20]}  Kf6 {[%clk 0:00:11]} 40. Qxf5+ {[%clk 0:00:17]}  Kxf5 {[%clk 0:00:11]} 41. Kg2 {[%clk 0:00:17]}  Nd4 {[%clk 0:00:11]} 42. Rb7 {[%clk 0:00:16]}  Nxc2 {[%clk 0:00:09]} 43. c6 {[%clk 0:00:15]}  Re6 {[%clk 0:00:04]} 44. c7 {[%clk 0:00:15]}  Rc6 {[%clk 0:00:05]} 45. Rc1 {[%clk 0:00:14]}  Ne3+ {[%clk 0:00:05]} 46. fxe3 {[%clk 0:00:14]}  Rxc1 {[%clk 0:00:06]} 47. Kf3 {[%clk 0:00:12]}  g4+ {[%clk 0:00:06]} 48. Ke2 {[%clk 0:00:12]}  Ke6 {[%clk 0:00:07]} 49. d4 {[%clk 0:00:12]}  a5 {[%clk 0:00:07]} 50. Kd3 {[%clk 0:00:12]}  Kd7 {[%clk 0:00:07]} 51. Ke4 {[%clk 0:00:12]}  Rg1 {[%clk 0:00:06]} 52. d5 {[%clk 0:00:10]}  Rxg3 {[%clk 0:00:05]} 53. d6 {[%clk 0:00:10]}  Rg1 {[%clk 0:00:05]} 54. Rb8 {[%clk 0:00:10]}  Rc1 {[%clk 0:00:06]} 55. Rd8+ {[%clk 0:00:10]}  Ke6 {[%clk 0:00:06]} 56. c8=Q+ {[%clk 0:00:10]}  Rxc8 {[%clk 0:00:07]} 57. Rxc8 {[%clk 0:00:11]}  g3 {[%clk 0:00:08]} 58. Kf3 {[%clk 0:00:11]}  Kxd6 {[%clk 0:00:08]} 59. Kxg3 {[%clk 0:00:11]}  Ke5 {[%clk 0:00:09]} 60. Ra8 {[%clk 0:00:11]}  a4 {[%clk 0:00:09]} 61. Rxa4 {[%clk 0:00:11]}  g5 {[%clk 0:00:09]} 62. Rf4 {[%clk 0:00:12]}  gxf4+ {[%clk 0:00:10]} 63. exf4+ {[%clk 0:00:12]}  Kf5 {[%clk 0:00:11]} 64. Kf3 {[%clk 0:00:12]}  Kf6 {[%clk 0:00:11]} 65. a4 {[%clk 0:00:13]}  Ke6 {[%clk 0:00:12]} 66. a5 {[%clk 0:00:13]}  Kd6 {[%clk 0:00:13]} 67. a6 {[%clk 0:00:14]}  Kc7 {[%clk 0:00:13]} 68. f5 {[%clk 0:00:14]}  Kb6 {[%clk 0:00:14]} 69. f6 {[%clk 0:00:15]}  Kxa6 {[%clk 0:00:15]} 70. f7 {[%clk 0:00:15]}  Kb5 {[%clk 0:00:15]} 71. f8=Q {[%clk 0:00:16]}  Kc6 {[%clk 0:00:16]} 72. Qd8 {[%clk 0:00:16]}  Kb7 {[%clk 0:00:16]} 73. Ke3 {[%clk 0:00:16]}  Kc6 {[%clk 0:00:17]} 74. Kd4 {[%clk 0:00:16]}  Kb5 {[%clk 0:00:18]} 75. Qc8 {[%clk 0:00:16]}  Kb6 {[%clk 0:00:19]} 76. Kd5 {[%clk 0:00:15]}  Ka7 {[%clk 0:00:19]} 77. Qc7+ {[%clk 0:00:14]}  Ka8 {[%clk 0:00:19]} 78. Qd7 {[%clk 0:00:14]}  Kb8 {[%clk 0:00:18]} 79. Kc6 {[%clk 0:00:14]}  Ka8 {[%clk 0:00:19]} 80. Qb7# {[%clk 0:00:14]} 1-0


[Site "https://www.chess.com"]

[Event "Titled Tuesday Blitz May 31 Early 2022"]
[White "Bharath Subramaniyam H"]
[Black "Jegorovas, Aleksandras"]
[WhiteFideId "46634827"]
[BlackFideId "12801950"]
[WhiteElo "2242"]
[BlackElo "2247"]
[Result "1/2-1/2"]
[Round "01"]
[TimeControl "180+1"]
[Date "2022.06.01"]
[WhiteClock "0:00:10"]
[BlackClock "0:00:11"]

1. e4 {[%clk 0:02:58]}  e6 {[%clk 0:02:59]} 2. d4 {[%clk 0:02:56]}  d5 {[%clk 0:02:59]} 3. Nc3 {[%clk 0:02:55]}  Bb4 {[%clk 0:02:58]} 4. exd5 {[%clk 0:02:54]}  exd5 {[%clk 0:02:58]} 5. Bd3 {[%clk 0:02:55]}  Nc6 {[%clk 0:02:57]} 6. a3 {[%clk 0:02:55]}  Bxc3+ {[%clk 0:02:54]} 7. bxc3 {[%clk 0:02:54]}  Nge7 {[%clk 0:02:52]} 8. Qh5 {[%clk 0:02:54]}  Be6 {[%clk 0:02:48]} 9. Nf3 {[%clk 0:02:54]}  Qd7 {[%clk 0:02:46]} 10. Ng5 {[%clk 0:02:53]}  h6 {[%clk 0:02:36]} 11. O-O {[%clk 0:02:42]}  O-O {[%clk 0:01:47]} 12. Nh7 {[%clk 0:02:36]}  Rfe8 {[%clk 0:01:30]} 13. Bxh6 {[%clk 0:02:34]}  Ng6 {[%clk 0:01:21]} 14. Nf6+ {[%clk 0:00:54]}  gxf6 {[%clk 0:01:19]} 15. h3 {[%clk 0:00:53]}  Nce7 {[%clk 0:01:12]} 16. Rae1 {[%clk 0:00:47]}  Bf5 {[%clk 0:01:01]} 17. g4 {[%clk 0:00:28]}  Bxd3 {[%clk 0:01:00]} 18. cxd3 {[%clk 0:00:29]}  Nc6 {[%clk 0:00:53]} 19. f4 {[%clk 0:00:20]}  Rxe1 {[%clk 0:00:52]} 20. Rxe1 {[%clk 0:00:19]}  Re8 {[%clk 0:00:51]} 21. Rf1 {[%clk 0:00:19]}  Qe7 {[%clk 0:00:42]} 22. f5 {[%clk 0:00:18]}  Nf8 {[%clk 0:00:41]} 23. Bf4 {[%clk 0:00:15]}  Nh7 {[%clk 0:00:33]} 24. h4 {[%clk 0:00:13]}  Qe2 {[%clk 0:00:31]} 25. Rf2 {[%clk 0:00:13]}  Qd1+ {[%clk 0:00:30]} 26. Kg2 {[%clk 0:00:12]}  Re2 {[%clk 0:00:29]} 27. Rxe2 {[%clk 0:00:12]}  Qxe2+ {[%clk 0:00:28]} 28. Kg1 {[%clk 0:00:13]}  Qd1+ {[%clk 0:00:26]} 29. Kf2 {[%clk 0:00:12]}  Qxd3 {[%clk 0:00:26]} 30. Bxc7 {[%clk 0:00:12]}  Qxc3 {[%clk 0:00:25]} 31. Bd6 {[%clk 0:00:12]}  Nxd4 {[%clk 0:00:23]} 32. g5 {[%clk 0:00:11]}  Qd2+ {[%clk 0:00:21]} 33. Kf1 {[%clk 0:00:11]}  Qd3+ {[%clk 0:00:20]} 34. Kg2 {[%clk 0:00:11]}  Qe4+ {[%clk 0:00:20]} 35. Kg1 {[%clk 0:00:11]}  Nf3+ {[%clk 0:00:19]} 36. Kf2 {[%clk 0:00:11]}  Ne5 {[%clk 0:00:19]} 37. Bxe5 {[%clk 0:00:09]}  Qxe5 {[%clk 0:00:18]} 38. g6 {[%clk 0:00:09]}  fxg6 {[%clk 0:00:16]} 39. Qxg6+ {[%clk 0:00:10]}  Kh8 {[%clk 0:00:16]} 40. h5 {[%clk 0:00:11]}  Qd4+ {[%clk 0:00:16]} 41. Kf3 {[%clk 0:00:11]}  Qe4+ {[%clk 0:00:16]} 42. Kf2 {[%clk 0:00:11]}  Qd4+ {[%clk 0:00:16]} 43. Kf1 {[%clk 0:00:12]}  Qd3+ {[%clk 0:00:16]} 44. Kf2 {[%clk 0:00:12]}  Qc2+ {[%clk 0:00:16]} 45. Kf1 {[%clk 0:00:12]}  Qc1+ {[%clk 0:00:16]} 46. Kf2 {[%clk 0:00:13]}  Qg5 {[%clk 0:00:16]} 47. Qe8+ {[%clk 0:00:13]}  Qg8 {[%clk 0:00:16]} 48. Qd7 {[%clk 0:00:13]}  Ng5 {[%clk 0:00:16]} 49. Qxb7 {[%clk 0:00:13]}  Qe8 {[%clk 0:00:15]} 50. Qxa7 {[%clk 0:00:12]}  Qe4 {[%clk 0:00:14]} 51. h6 {[%clk 0:00:12]}  Qf3+ {[%clk 0:00:13]} 52. Ke1 {[%clk 0:00:12]}  Qc3+ {[%clk 0:00:13]} 53. Kd1 {[%clk 0:00:12]}  Qd3+ {[%clk 0:00:13]} 54. Kc1 {[%clk 0:00:12]}  Qc3+ {[%clk 0:00:13]} 55. Kb1 {[%clk 0:00:13]}  Qb3+ {[%clk 0:00:13]} 56. Kc1 {[%clk 0:00:13]}  Qc3+ {[%clk 0:00:13]} 57. Kb1 {[%clk 0:00:14]}  Qb3+ {[%clk 0:00:13]} 58. Kc1 {[%clk 0:00:14]}  Qc4+ {[%clk 0:00:13]} 59. Kb2 {[%clk 0:00:14]}  Qb5+ {[%clk 0:00:13]} 60. Ka1 {[%clk 0:00:13]}  Qf1+ {[%clk 0:00:12]} 61. Kb2 {[%clk 0:00:13]}  Qb5+ {[%clk 0:00:12]} 62. Kc1 {[%clk 0:00:13]}  Qc4+ {[%clk 0:00:12]} 63. Kd1 {[%clk 0:00:09]}  Qd3+ {[%clk 0:00:12]} 64. Kc1 {[%clk 0:00:10]}  Qc3+ {[%clk 0:00:11]} 1/2-1/2


[Site "https://www.chess.com"]

[Event "Titled Tuesday Blitz May 31 Early 2022"]
[White "Bortnyk, Olexandr"]
[Black "Omelja, Artem"]
[WhiteFideId "14120828"]
[BlackFideId "14119846"]
[WhiteElo "2723"]
[BlackElo "2382"]
[Result "1-0"]
[Round "01"]
[TimeControl "180+1"]
[Date "2022.05.31"]
[WhiteClock "0:01:35"]
[BlackClock "0:00:02"]

1. d4 {[%clk 0:02:50]}  d5 {[%clk 0:02:59]} 2. Nc3 {[%clk 0:02:50]}  Nf6 {[%clk 0:02:59]} 3. Bf4 {[%clk 0:02:47]}  a6 {[%clk 0:02:58]} 4. e3 {[%clk 0:02:46]}  Bf5 {[%clk 0:02:53]} 5. Nf3 {[%clk 0:02:45]}  e6 {[%clk 0:02:48]} 6. Ne5 {[%clk 0:02:45]}  h6 {[%clk 0:02:42]} 7. g4 {[%clk 0:02:45]}  Bh7 {[%clk 0:02:41]} 8. h4 {[%clk 0:02:45]}  Ne4 {[%clk 0:02:28]} 9. Nxe4 {[%clk 0:02:44]}  Bxe4 {[%clk 0:02:29]} 10. f3 {[%clk 0:02:44]}  Bh7 {[%clk 0:02:30]} 11. Bd3 {[%clk 0:02:39]}  Bxd3 {[%clk 0:02:27]} 12. cxd3 {[%clk 0:02:35]}  Nd7 {[%clk 0:02:24]} 13. Qb3 {[%clk 0:02:35]}  Nxe5 {[%clk 0:02:04]} 14. Bxe5 {[%clk 0:02:36]}  f6 {[%clk 0:01:36]} 15. Bf4 {[%clk 0:02:27]}  Bd6 {[%clk 0:01:24]} 16. Qxb7 {[%clk 0:02:24]}  Bxf4 {[%clk 0:01:19]} 17. Qc6+ {[%clk 0:02:23]}  Kf7 {[%clk 0:01:10]} 18. exf4 {[%clk 0:02:23]}  Rb8 {[%clk 0:01:07]} 19. b3 {[%clk 0:02:13]}  Qe7 {[%clk 0:00:58]} 20. Rc1 {[%clk 0:02:05]}  Rhc8 {[%clk 0:00:43]} 21. Kf2 {[%clk 0:02:04]}  Qb4 {[%clk 0:00:41]} 22. Ke3 {[%clk 0:01:49]}  a5 {[%clk 0:00:32]} 23. g5 {[%clk 0:01:50]}  hxg5 {[%clk 0:00:12]} 24. hxg5 {[%clk 0:01:50]}  Qe7 {[%clk 0:00:09]} 25. gxf6 {[%clk 0:01:38]}  Qxf6 {[%clk 0:00:09]} 26. Rcg1 {[%clk 0:01:36]}  Rb4 {[%clk 0:00:07]} 27. Qd7+ {[%clk 0:01:36]}  Kf8 {[%clk 0:00:02]} 28. Rh8# {[%clk 0:01:35]} 1-0


[Site "https://www.chess.com"]

[Event "Titled Tuesday Blitz May 31 Early 2022"]
[White "Devaev, Alexander"]
[Black "Jumabayev, Rinat"]
[WhiteFideId "4169395"]
[BlackFideId "13702661"]
[WhiteElo "2185"]
[BlackElo "2561"]
[Result "0-1"]
[Round "01"]
[TimeControl "180+1"]
[Date "2022.06.01"]
[WhiteClock "0:00:02"]
[BlackClock "0:00:19"]

1. d4 {[%clk 0:02:56]}  Nf6 {[%clk 0:02:59]} 2. c4 {[%clk 0:02:50]}  g6 {[%clk 0:03:00]} 3. Nc3 {[%clk 0:02:48]}  d5 {[%clk 0:03:00]} 4. Nf3 {[%clk 0:02:48]}  Bg7 {[%clk 0:03:00]} 5. Bg5 {[%clk 0:02:49]}  Ne4 {[%clk 0:02:59]} 6. cxd5 {[%clk 0:02:50]}  Nxg5 {[%clk 0:02:58]} 7. Nxg5 {[%clk 0:02:50]}  e6 {[%clk 0:02:59]} 8. Nf3 {[%clk 0:02:51]}  exd5 {[%clk 0:02:59]} 9. b4 {[%clk 0:02:52]}  O-O {[%clk 0:02:59]} 10. Qb3 {[%clk 0:02:52]}  Be6 {[%clk 0:02:56]} 11. e3 {[%clk 0:02:53]}  c6 {[%clk 0:02:52]} 12. Be2 {[%clk 0:02:52]}  a5 {[%clk 0:02:52]} 13. O-O {[%clk 0:02:44]}  axb4 {[%clk 0:02:43]} 14. Qxb4 {[%clk 0:02:45]}  Ra7 {[%clk 0:02:43]} 15. a4 {[%clk 0:02:22]}  Qa5 {[%clk 0:02:37]} 16. Qb3 {[%clk 0:01:50]}  h6 {[%clk 0:02:29]} 17. Rfc1 {[%clk 0:01:27]}  Nd7 {[%clk 0:02:29]} 18. Rab1 {[%clk 0:01:22]}  Rfa8 {[%clk 0:02:28]} 19. h4 {[%clk 0:01:18]}  Qd8 {[%clk 0:02:22]} 20. h5 {[%clk 0:01:16]}  g5 {[%clk 0:02:21]} 21. Nh2 {[%clk 0:00:54]}  f5 {[%clk 0:02:14]} 22. Re1 {[%clk 0:00:44]}  Nf6 {[%clk 0:02:07]} 23. Rbd1 {[%clk 0:00:42]}  Qe8 {[%clk 0:02:05]} 24. Bd3 {[%clk 0:00:23]}  Nxh5 {[%clk 0:02:01]} 25. Qc2 {[%clk 0:00:23]}  Qf7 {[%clk 0:01:59]} 26. Rb1 {[%clk 0:00:18]}  Rf8 {[%clk 0:01:39]} 27. Nf3 {[%clk 0:00:15]}  Bc8 {[%clk 0:01:22]} 28. Qb3 {[%clk 0:00:07]}  Bf6 {[%clk 0:01:08]} 29. Ne2 {[%clk 0:00:07]}  Re8 {[%clk 0:01:05]} 30. Qc2 {[%clk 0:00:06]}  Ng7 {[%clk 0:01:05]} 31. Ng3 {[%clk 0:00:05]}  g4 {[%clk 0:01:01]} 32. Ne5 {[%clk 0:00:04]}  Bxe5 {[%clk 0:01:00]} 33. dxe5 {[%clk 0:00:04]}  Rxe5 {[%clk 0:01:01]} 34. Qc3 {[%clk 0:00:03]}  Re8 {[%clk 0:00:57]} 35. Qd4 {[%clk 0:00:04]}  Ra5 {[%clk 0:00:55]} 36. Ne2 {[%clk 0:00:03]}  Ne6 {[%clk 0:00:48]} 37. Qe5 {[%clk 0:00:04]}  Rxa4 {[%clk 0:00:45]} 38. Qh2 {[%clk 0:00:03]}  Kg7 {[%clk 0:00:37]} 39. Ng3 {[%clk 0:00:04]}  Ng5 {[%clk 0:00:27]} 40. Bc2 {[%clk 0:00:03]}  Ra2 {[%clk 0:00:25]} 41. Bb3 {[%clk 0:00:03]}  Rd2 {[%clk 0:00:25]} 42. Nf1 {[%clk 0:00:03]}  Rd3 {[%clk 0:00:24]} 43. Ng3 {[%clk 0:00:02]}  Kh7 {[%clk 0:00:19]} 0-1


[Site "https://www.chess.com"]